fUST/lending_fUST_20240118
["ID","MTS","AMOUNT","RATE_DAILY","PERIOD"]
[311988439,1705533040510,-500.0,0.00021917,2]
[311988441,1705533040520,-500.0,0.00021917,2]
[311988443,1705533040529,-500.0,0.00021917,2]
[311988445,1705533040539,-297.68122373,0.00021917,2]
[311988447,1705533040548,-325.91663912,0.00021917,2]
[311988449,1705533040557,-500.0,0.00021917,2]
[311988450,1705533040566,-595.43,0.00021917,2]
[311988452,1705533040575,-500.0,0.00021917,2]
[311988453,1705533040585,-507.60003843,0.00021917,2]
[311988454,1705533040594,-500.0,0.00021917,2]
[311988455,1705533040603,-173.39777827,0.00021917,2]
[311988456,1705533040613,-500.0,0.00021917,2]
[311988457,1705533040622,-500.0,0.00021917,2]
[311988458,1705533040631,-501.6604041,0.00021917,2]
[311988459,1705533040640,-500.0,0.00021917,2]
[311988460,1705533040649,-252.5833351,0.00021917,2]
[311988461,1705533040659,-200.0,0.00021917,2]
[311988462,1705533040668,-500.0,0.00021917,2]
[311988463,1705533040678,-179.25954201,0.00021917,2]
[311988464,1705533040688,-500.0,0.00021917,2]
[311988465,1705533040699,-500.0,0.00021917,2]
[311988466,1705533040708,-500.0,0.00021917,2]
[311988467,1705533040717,-1370.09,0.00021917,2]
[311988468,1705533040727,-500.0,0.00021917,2]
[311988469,1705533040736,-500.0,0.00021917,2]
[311988470,1705533040744,-500.0,0.00021917,2]
[311988471,1705533040753,-500.0,0.00021917,2]
[311988472,1705533040762,-500.0,0.00021917,2]
[311988473,1705533040771,-500.0,0.00021917,2]
[311988474,1705533040781,-1561.51,0.00021917,2]
[311988475,1705533040790,-500.0,0.00021917,2]
[311988476,1705533040799,-500.0,0.00021917,2]
[311988477,1705533040808,-500.0,0.00021917,2]
[311988478,1705533040817,-500.0,0.00021917,2]
[311988479,1705533040826,-500.0,0.00021917,2]
[311988480,1705533040837,-500.0,0.00021917,2]
[311988481,1705533040846,-500.0,0.00021917,2]
[311988482,1705533040855,-500.0,0.00021917,2]
[311988483,1705533040864,-500.0,0.00021917,2]
[311988484,1705533040872,-500.0,0.00021917,2]
[311988486,1705533040881,-500.0,0.00021917,2]
[311988488,1705533040891,-500.0,0.00021917,2]
[311988490,1705533040901,-500.0,0.00021917,2]
[311988493,1705533040911,-500.0,0.00021917,2]
[311988496,1705533040921,-500.0,0.00021917,2]
[311988498,1705533040930,-500.0,0.00021917,2]
[311988499,1705533040939,-500.0,0.00021917,2]
[311988500,1705533040949,-500.0,0.00021917,2]
[311988502,1705533040958,-500.0,0.00021917,2]
[311988504,1705533040967,-500.83927712,0.00021917,2]
[311988506,1705533040976,-500.0,0.00021917,2]
[311988508,1705533040986,-500.0,0.00021917,2]
[311988510,1705533040996,-500.0,0.00021917,2]
[311988512,1705533041005,-500.0,0.00021917,2]
[311988514,1705533041015,-500.0,0.00021917,2]
[311988516,1705533041024,-537.38332628,0.00021917,2]
[311988518,1705533041033,-500.0,0.00021917,2]
[311988520,1705533041042,-743.7,0.00021917,2]
[311988522,1705533041051,-500.0,0.00021917,2]
[311988524,1705533041060,-529.03796946,0.00021917,2]
[311988526,1705533041070,-503.2282756,0.00021917,2]
[311988527,1705533041079,-500.0,0.00021917,2]
[311988529,1705533041089,-500.0,0.00021917,2]
[311988531,1705533041100,-500.0,0.00021917,2]
[311988533,1705533041110,-500.0,0.00021917,2]
[311988535,1705533041120,-500.0,0.00021917,2]
[311988537,1705533041129,-500.0,0.00021917,2]
[311988539,1705533041139,-500.0,0.00021917,2]
[311988541,1705533041148,-500.0,0.00021917,2]
[311988543,1705533041158,-500.0,0.00021917,2]
[311988545,1705533041167,-500.0,0.00021917,2]
[311988547,1705533041177,-500.0,0.00021917,2]
[311988549,1705533041187,-500.0,0.00021917,2]
[311988551,1705533041197,-762.19,0.00021917,2]
[311988553,1705533041207,-640.26988452,0.00021917,2]
[311988555,1705533041216,-500.0,0.00021917,2]
[311988557,1705533041226,-500.0,0.00021917,2]
[311988559,1705533041235,-501.47332198,0.00021917,2]
[311988560,1705533041245,-500.0,0.00021917,2]
[311988562,1705533041254,-500.0,0.00021917,2]
[311988563,1705533041264,-500.0,0.00021917,2]
[311988565,1705533041273,-500.0,0.00021917,2]
[311988567,1705533041282,-500.0,0.00021917,2]
[311988569,1705533041291,-500.0,0.00021917,2]
[311988571,1705533041301,-501.24,0.00021917,2]
[311988572,1705533041310,-1385.66,0.00021917,2]
[311988573,1705533041320,-500.0,0.00021917,2]
[311988574,1705533041330,-500.0,0.00021917,2]
[311988575,1705533041340,-500.0,0.00021917,2]
[311988576,1705533041349,-500.0,0.00021917,2]
[311988577,1705533041359,-766.82,0.00021917,2]
[311988578,1705533041368,-500.0,0.00021917,2]
[311988580,1705533041377,-500.0,0.00021917,2]
[311988582,1705533041386,-500.0,0.00021917,2]
[311988584,1705533041395,-500.0,0.00021917,2]
[311988585,1705533041405,-500.0,0.00021917,2]
[311988587,1705533041414,-500.0,0.00021917,2]
[311988589,1705533041424,-500.0,0.00021917,2]
[311988591,1705533041434,-500.0,0.00021917,2]
[311988593,1705533041443,-500.0,0.00021917,2]
[311988594,1705533041453,-500.0,0.00021917,2]
[311988595,1705533041462,-500.0,0.00021917,2]
[311988596,1705533041472,-500.0,0.00021917,2]
[311988597,1705533041481,-500.0,0.00021917,2]
[311988598,1705533041490,-500.0,0.00021917,2]
[311988599,1705533041499,-418.98108015,0.00021917,2]
[311988600,1705533041509,-500.0,0.00021917,2]
[311988602,1705533041518,-11368.56,0.00021917,2]
[311988604,1705533041527,-500.0,0.00021917,2]
[311988606,1705533041537,-2910.88,0.00021917,2]
[311988608,1705533041546,-665.62,0.00021917,2]
[311988617,1705533041556,-500.0,0.00021917,2]
[311988620,1705533041636,-557.42888858,0.00021917,2]
[311988622,1705533041646,-159.14815525,0.00021917,2]
[311988624,1705533041656,-500.0,0.00021917,2]
[311988626,1705533041665,-500.0,0.00021917,2]
[311988628,1705533041675,-500.0,0.00021917,2]
[311988629,1705533041684,-500.0,0.00021917,2]
[311988631,1705533041694,-1098.49,0.00021917,2]
[311988633,1705533041703,-733.29,0.00021917,2]
[311988635,1705533041713,-500.0,0.00021917,2]
[311988637,1705533041722,-230.02217805,0.00021917,2]
[311988639,1705533041732,-437.43643004,0.00021917,2]
[311988641,1705533041742,-500.0,0.00021917,2]
[311988643,1705533041752,-502.41032459,0.00021917,2]
[311988645,1705533041762,-5860.85,0.00021917,2]
[311988647,1705533041772,-500.0,0.00021917,2]
[311988650,1705533041782,-500.0,0.00021917,2]
[311988651,1705533041791,-500.0,0.00021917,2]
[311988653,1705533041801,-500.0,0.00021917,2]
[311988655,1705533041811,-500.0,0.00021917,2]
[311988657,1705533041820,-500.0,0.00021917,2]
[311988660,1705533041830,-500.0,0.00021917,2]
[311988662,1705533041842,-500.0,0.00021917,2]
[311988664,1705533041852,-3932.2,0.00021917,2]
[311988665,1705533041861,-500.0,0.00021917,2]
[311988667,1705533041871,-500.0,0.00021917,2]
[311988669,1705533041881,-500.0,0.00021917,2]
[311988671,1705533041891,-3741.75,0.00021917,2]
[311988673,1705533041900,-8736.61,0.00021917,2]
[311988675,1705533041910,-4069.96,0.00021917,2]
[311988678,1705533041921,-500.0,0.00021917,2]
[311988680,1705533041930,-500.0,0.00021917,2]
[311988682,1705533041940,-500.0,0.00021917,2]
[311988683,1705533041949,-500.0,0.00021917,2]
[311988685,1705533041958,-500.0,0.00021917,2]
[311988687,1705533041968,-500.0,0.00021917,2]
[311988689,1705533041978,-500.0,0.00021917,2]
[311988692,1705533041987,-375.15408606,0.00021917,2]
[311988693,1705533041996,-1366.05,0.00021917,2]
[311988695,1705533042006,-322.25229753,0.00021917,2]
[311988697,1705533042016,-500.0,0.00021917,2]
[311988699,1705533042025,-1158.92,0.00021917,2]
[311988701,1705533042034,-753.49,0.00021917,2]
[311988703,1705533042043,-500.0,0.00021917,2]
[311988705,1705533042052,-500.0,0.00021917,2]
[311988707,1705533042062,-500.0,0.00021917,2]
[311988709,1705533042071,-500.0,0.00021917,2]
[311988711,1705533042080,-500.0,0.00021917,2]
[311988713,1705533042092,-500.0,0.00021917,2]
[311988715,1705533042102,-500.0,0.00021917,2]
[311988717,1705533042111,-506.20696998,0.00021917,2]
[311988719,1705533042120,-500.0,0.00021917,2]
[311988721,1705533042131,-500.0,0.00021917,2]
[311988723,1705533042140,-500.0,0.00021917,2]
[311988725,1705533042149,-500.0,0.00021917,2]
[311988727,1705533042158,-500.0,0.00021917,2]
[311988729,1705533042168,-500.0,0.00021917,2]
[311988731,1705533042178,-500.0,0.00021917,2]
[311988733,1705533042187,-500.0,0.00021917,2]
[311988735,1705533042196,-500.0,0.00021917,2]
[311988737,1705533042206,-500.0,0.00021917,5]
[311988739,1705533042215,-500.0,0.00021917,2]
[311988741,1705533042224,-500.0,0.00021917,2]
[311988743,1705533042233,-500.0,0.00021917,2]
[311988745,1705533042243,-506.74088154,0.00021917,2]
[311988748,1705533042252,-500.0,0.00021917,2]
[311988751,1705533042261,-948.8,0.00021917,2]
[311988753,1705533042270,-535.84483329,0.00021917,2]
[311988755,1705533042280,-500.0,0.00021917,2]
[311988757,1705533042289,-500.0,0.00021917,2]
[311988759,1705533042298,-500.0,0.00021917,2]
[311988761,1705533042307,-893.21,0.00021917,2]
[311988763,1705533042317,-500.0,0.00021917,2]
[311988765,1705533042326,-350.0,0.00021917,2]
[311988767,1705533042337,-500.0,0.00021917,2]
[311988769,1705533042346,-502.53967213,0.00021917,2]
[311988771,1705533042356,-500.0,0.00021917,2]
[311988774,1705533042365,-500.0,0.00021917,2]
[311988776,1705533042374,-500.0,0.00021917,2]
[311988779,1705533042383,-1666.21,0.00021917,2]
[311988782,1705533042392,-500.0,0.00021917,2]
[311988785,1705533042402,-500.0,0.00021917,2]
[311988787,1705533042411,-500.0,0.00021917,2]
[311988790,1705533042421,-550.8718415,0.00021917,2]
[311988793,1705533042430,-500.0,0.00021917,2]
[311988796,1705533042439,-500.0,0.00021917,2]
[311988799,1705533042448,-1208.58,0.00021917,2]
[311988802,1705533042457,-500.0,0.00021917,2]
[311988804,1705533042466,-500.0,0.00021917,2]
[311988806,1705533042476,-500.0,0.00021917,2]
[311988808,1705533042485,-328.41605815,0.00021917,2]
[311988810,1705533042494,-500.0,0.00021917,2]
[311988812,1705533042503,-500.0,0.00021917,2]
[311988814,1705533042512,-500.0,0.00021917,2]
[311988816,1705533042521,-1000.0,0.00021917,2]
[311988818,1705533042530,-221.65303753,0.00021917,2]
[311988820,1705533042539,-500.0,0.00021917,2]
[311988822,1705533042548,-500.0,0.00021917,2]
[311988824,1705533042558,-500.0,0.00021917,2]
[311988825,1705533042567,-500.0,0.00021917,2]
[311988827,1705533042577,-500.0,0.00021917,2]
[311988830,1705533042587,-500.0,0.00021917,2]
[311988831,1705533042596,-500.0,0.00021917,2]
[311988833,1705533042606,-500.0,0.00021917,2]
[311988835,1705533042615,-166.666666,0.00021918,2]
[311988837,1705533042624,-1098.53604515,0.00021954,2]
[311988839,1705533042634,-425.53656097,0.00022,2]
[311988841,1705533042643,-293.1976279,0.00022,4]
[311988843,1705533042652,-3955.54830897,0.00022,2]
[311988845,1705533042661,-181.82299983,0.00022023,2]
[311988847,1705533042671,-255.0122566,0.00022053,2]
[311988849,1705533042680,-500.0,0.00022053,2]
[311988851,1705533042689,-500.0,0.00022053,2]
[311988853,1705533042699,-500.0,0.00022053,2]
[311988855,1705533042708,-151.0,0.00022054,2]
[311988857,1705533042718,-217.861042,0.00022054,2]
[311988859,1705533042728,-2127.490309,0.00022054,2]
[311988861,1705533042737,-2127.490309,0.00022054,2]
[311988863,1705533042747,-151.0,0.00022054,2]
[311988865,1705533042756,-154.9690062,0.00022054,2]
[311988866,1705533042766,-2082.34429626,0.00022054,2]
[311988867,1705533042775,-1824.28362895,0.00022054,2]
[311988868,1705533042784,-200.0,0.00022054,2]
[311988869,1705533042793,-500.0,0.00022054,2]
[311988870,1705533042803,-500.0,0.00022054,2]
[311988871,1705533042812,-500.0,0.00022054,2]
[311988872,1705533042821,-885.92,0.00022054,2]
[311988873,1705533042830,-500.0,0.00022054,2]
[311988874,1705533042840,-500.0,0.00022054,2]
[311988876,1705533042850,-715.04668397,0.00022054,2]
[311988878,1705533042860,-155.46887984,0.00022054,2]
[311988880,1705533042869,-500.0,0.00022054,2]
[311988882,1705533042878,-500.0,0.00022054,2]
[311988885,1705533042887,-115736.46583059,0.00022054,2]
[311988886,1705533042896,-500.0,0.00022054,2]
[311988888,1705533042904,-507.22407258,0.00022054,2]
[311988890,1705533042913,-500.0,0.00022054,2]
[311988892,1705533042923,-500.0,0.00022054,2]
[311988894,1705533042932,-500.0,0.00022054,2]
[311988896,1705533042941,-500.0,0.00022054,2]
[311988898,1705533042950,-500.0,0.00022054,2]
[311988900,1705533042960,-500.0,0.00022054,2]
[311988902,1705533042969,-500.0,0.00022054,2]
[311988910,1705533043040,-500.0,0.00022054,2]
[311988912,1705533043049,-500.0,0.00022054,2]
[311988914,1705533043058,-500.0,0.00022054,2]
[311988916,1705533043067,-500.0,0.00022054,2]
[311988918,1705533043076,-500.0,0.00022054,2]
[311988920,1705533043086,-500.0,0.00022054,2]
[311988922,1705533043099,-506.0700257,0.00022054,2]
[311988924,1705533043108,-500.0,0.00022054,2]
[311988926,1705533043117,-500.0,0.00022054,2]
[311988928,1705533043126,-500.0,0.00022054,2]
[311988930,1705533043135,-500.0,0.00022054,2]
[311988932,1705533043144,-500.0,0.00022054,2]
[311988934,1705533043152,-271.04908703,0.00022054,2]
[311988936,1705533043161,-595.43,0.00022054,2]
[311988938,1705533043171,-500.0,0.00022054,2]
[311988940,1705533043181,-500.0,0.00022054,2]
[311988942,1705533043189,-500.0,0.00022054,2]
[311988943,1705533043198,-509.68802512,0.00022054,2]
[311988945,1705533043206,-200.0,0.00022054,2]
[311988947,1705533043215,-500.0,0.00022054,2]
[311988949,1705533043225,-500.0,0.00022054,2]
[311988951,1705533043233,-500.0,0.00022054,2]
[311988953,1705533043242,-592.71383453,0.00022054,2]
[311988955,1705533043256,-1370.09,0.00022054,2]
[311988957,1705533043265,-500.0,0.00022054,2]
[311988959,1705533043274,-500.0,0.00022054,2]
[311988961,1705533043283,-500.0,0.00022054,2]
[311988963,1705533043292,-500.0,0.00022054,2]
[311988965,1705533043301,-1561.51,0.00022054,2]
[311988967,1705533043310,-500.0,0.00022054,2]
[311988969,1705533043319,-500.0,0.00022054,2]
[311988971,1705533043328,-500.0,0.00022054,2]
[311988973,1705533043338,-500.91129937,0.00022054,2]
[311988975,1705533043347,-208.84713893,0.00022054,2]
[311988977,1705533043356,-500.0,0.00022054,2]
[311988979,1705533043365,-500.0,0.00022054,2]
[311988981,1705533043374,-500.0,0.00022054,2]
[311988983,1705533043382,-500.0,0.00022054,2]
[311988984,1705533043393,-500.0,0.00022054,2]
[311988987,1705533043403,-500.0,0.00022054,2]
[311988988,1705533043412,-500.0,0.00022054,2]
[311988989,1705533043421,-500.0,0.00022054,2]
[311988991,1705533043430,-500.0,0.00022054,2]
[311988993,1705533043439,-500.0,0.00022054,2]
[311988994,1705533043450,-500.0,0.00022054,2]
[311988996,1705533043459,-364.42439101,0.00022054,2]
[311988998,1705533043468,-500.0,0.00022054,2]
[311989000,1705533043477,-415.14109575,0.00022054,2]
[311989002,1705533043486,-500.0,0.00022054,2]
[311989003,1705533043494,-743.7,0.00022054,2]
[311989004,1705533043503,-500.0,0.00022054,2]
[311989005,1705533043512,-500.0,0.00022054,2]
[311989006,1705533043521,-513.23898,0.00022054,2]
[311989007,1705533043531,-500.0,0.00022054,2]
[311989008,1705533043539,-547.64413327,0.00022054,2]
[311989009,1705533043548,-508.79321052,0.00022054,2]
[311989010,1705533043557,-500.0,0.00022054,2]
[311989011,1705533043566,-500.0,0.00022054,2]
[311989012,1705533043575,-500.0,0.00022054,2]
[311989013,1705533043584,-500.0,0.00022054,2]
[311989014,1705533043596,-500.0,0.00022054,2]
[311989015,1705533043605,-762.19,0.00022054,2]
[311989016,1705533043614,-500.0,0.00022054,2]
[311989017,1705533043623,-500.0,0.00022054,2]
[311989018,1705533043632,-500.0,0.00022054,2]
[311989019,1705533043642,-500.0,0.00022054,2]
[311989020,1705533043651,-500.0,0.00022054,2]
[311989021,1705533043660,-500.0,0.00022054,2]
[311989022,1705533043669,-500.0,0.00022054,2]
[311989023,1705533043680,-501.24,0.00022054,2]
[311989024,1705533043689,-1385.66,0.00022054,2]
[311989026,1705533043698,-500.0,0.00022054,2]
[311989028,1705533043707,-500.0,0.00022054,2]
[311989030,1705533043716,-500.0,0.00022054,2]
[311989032,1705533043725,-500.0,0.00022054,2]
[311989033,1705533043734,-766.82,0.00022054,2]
[311989035,1705533043744,-500.0,0.00022054,2]
[311989037,1705533043753,-500.0,0.00022054,2]
[311989039,1705533043762,-500.0,0.00022054,2]
[311989041,1705533043771,-500.0,0.00022054,2]
[311989043,1705533043780,-500.0,0.00022054,2]
[311989045,1705533043788,-500.0,0.00022054,2]
[311989047,1705533043797,-500.0,0.00022054,2]
[311989049,1705533043806,-502.38159096,0.00022054,2]
[311989051,1705533043815,-515.20044947,0.00022054,2]
[311989053,1705533043824,-500.0,0.00022054,2]
[311989055,1705533043833,-11368.56,0.00022054,2]
[311989057,1705533043842,-2910.88,0.00022054,2]
[311989059,1705533043851,-665.62,0.00022054,2]
[311989061,1705533043860,-500.0,0.00022054,2]
[311989063,1705533043869,-500.0,0.00022054,2]
[311989065,1705533043878,-500.0,0.00022054,2]
[311989067,1705533043887,-500.0,0.00022054,2]
[311989069,1705533043896,-1098.49,0.00022054,2]
[311989071,1705533043906,-733.29,0.00022054,2]
[311989073,1705533043915,-500.0,0.00022054,2]
[311989074,1705533043924,-500.0,0.00022054,2]
[311989077,1705533043934,-5860.85,0.00022054,2]
[311989079,1705533043943,-500.0,0.00022054,2]
[311989080,1705533043952,-500.0,0.00022054,2]
[311989082,1705533043961,-500.0,0.00022054,2]
[311989084,1705533043970,-500.0,0.00022054,2]
[311989086,1705533043979,-500.0,0.00022054,2]
[311989088,1705533043988,-3932.2,0.00022054,2]
[311989090,1705533043997,-500.0,0.00022054,2]
[311989092,1705533044007,-500.0,0.00022054,2]
[311989094,1705533044015,-3741.75,0.00022054,2]
[311989096,1705533044024,-8736.61,0.00022054,2]
[311989098,1705533044033,-4069.96,0.00022054,2]
[311989100,1705533044042,-500.0,0.00022054,2]
[311989102,1705533044051,-500.0,0.00022054,2]
[311989104,1705533044060,-500.0,0.00022054,2]
[311989106,1705533044069,-500.0,0.00022054,2]
[311989108,1705533044078,-500.0,0.00022054,2]
[311989110,1705533044088,-500.0,0.00022054,2]
[311989112,1705533044100,-1366.05,0.00022054,2]
[311989114,1705533044109,-500.0,0.00022054,2]
[311989116,1705533044118,-1158.92,0.00022054,2]
[311989118,1705533044127,-753.49,0.00022054,2]
[311989120,1705533044135,-500.0,0.00022054,2]
[311989122,1705533044144,-500.0,0.00022054,2]
[311989123,1705533044154,-500.0,0.00022054,2]
[311989125,1705533044163,-500.0,0.00022054,2]
[311989127,1705533044173,-500.0,0.00022054,2]
[311989130,1705533044183,-500.0,0.00022054,2]
[311989131,1705533044192,-500.0,0.00022054,2]
[311989133,1705533044202,-500.0,0.00022054,2]
[311989135,1705533044211,-500.0,0.00022054,2]
[311989137,1705533044221,-500.0,0.00022054,2]
[311989140,1705533044231,-388.70818294,0.00022054,2]
[311989141,1705533044240,-500.0,0.00022054,2]
[311989150,1705533044308,-500.0,0.00022054,2]
[311989152,1705533044317,-500.0,0.00022054,2]
[311989154,1705533044326,-948.8,0.00022054,2]
[311989156,1705533044335,-500.0,0.00022054,2]
[311989158,1705533044346,-500.0,0.00022054,2]
[311989160,1705533044355,-500.0,0.00022054,2]
[311989162,1705533044365,-893.21,0.00022054,2]
[311989164,1705533044373,-421.22353423,0.00022054,2]
[311989166,1705533044382,-500.0,0.00022054,2]
[311989168,1705533044392,-500.0,0.00022054,2]
[311989170,1705533044401,-500.0,0.00022054,2]
[311989171,1705533044410,-526.5289263,0.00022054,2]
[311989173,1705533044418,-1666.21,0.00022054,2]
[311989175,1705533044428,-500.0,0.00022054,2]
[311989177,1705533044437,-390.13580435,0.00022054,2]
[311989179,1705533044445,-500.0,0.00022054,2]
[311989181,1705533044455,-500.0,0.00022054,2]
[311989183,1705533044465,-500.91038738,0.00022054,2]
[311989185,1705533044474,-500.0,0.00022054,2]
[311989187,1705533044483,-1208.58,0.00022054,2]
[311989189,1705533044493,-500.0,0.00022054,2]
[311989191,1705533044501,-500.0,0.00022054,2]
[311989193,1705533044511,-500.0,0.00022054,2]
[311989195,1705533044520,-500.0,0.00022054,2]
[311989196,1705533044529,-1000.0,0.00022054,2]
[311989198,1705533044539,-500.0,0.00022054,2]
[311989200,1705533044548,-429.95876673,0.00022054,2]
[311989202,1705533044558,-500.0,0.00022054,2]
[311989204,1705533044567,-500.0,0.00022054,2]
[311989206,1705533044576,-501.9226916,0.00022054,2]
[311989208,1705533044586,-544.012673,0.00022091,2]
[311989210,1705533044597,-544.012673,0.00022091,2]
[311989212,1705533044606,-35704.57686873,0.00022091,2]
[311989214,1705533044615,-151.0,0.00022091,2]
[311989216,1705533044624,-500.0,0.0002219,2]
[311989218,1705533044633,-500.0,0.0002219,2]
[311989220,1705533044644,-500.0,0.0002219,2]
[311989222,1705533044653,-544.012673,0.00022191,2]
[311989224,1705533044665,-544.012673,0.00022191,2]
[311989226,1705533044674,-151.0,0.00022191,2]
[311989228,1705533044684,-2127.490309,0.00022191,2]
[311989229,1705533044692,-2127.490309,0.00022191,2]
[311989232,1705533044701,-2127.490309,0.00022191,2]
[311989234,1705533044711,-2127.490309,0.00022191,2]
[311989235,1705533044720,-151.0,0.00022191,2]
[311989237,1705533044729,-500.0,0.00022191,2]
[311989238,1705533044738,-885.92,0.00022191,2]
[311989239,1705533044747,-500.0,0.00022191,2]
[311989240,1705533044756,-500.0,0.00022191,2]
[311989241,1705533044765,-500.0,0.00022191,2]
[311989242,1705533044775,-500.0,0.00022191,2]
[311989243,1705533044784,-500.0,0.00022191,2]
[311989244,1705533044793,-500.0,0.00022191,2]
[311989245,1705533044802,-500.0,0.00022191,2]
[311989246,1705533044811,-500.0,0.00022191,2]
[311989247,1705533044820,-500.0,0.00022191,2]
[311989248,1705533044830,-500.0,0.00022191,2]
[311989249,1705533044839,-443.59183014,0.00022191,2]
[311989250,1705533044859,-56.40816986,0.00022191,2]
[311989251,1705533044869,-500.0,0.00022191,2]
[311989252,1705533044881,-500.0,0.00022191,2]
[311989253,1705533044898,-500.0,0.00022191,2]
[311989254,1705533044915,-500.0,0.00022191,2]
[311989255,1705533044927,-500.0,0.00022191,2]
[311989256,1705533044941,-115.79608939,0.00022191,2]
[311989257,1705533045029,-500.0,0.00022054,2]
[311989258,1705533045043,-384.20391061,0.00022191,2]
[311989259,1705533045055,-93.1700956,0.00022191,2]
[311989260,1705533045073,-406.8299044,0.00022191,2]
[311989261,1705533045088,-271.82886719,0.00022191,2]
[311989262,1705533045107,-323.60113281,0.00022191,2]
[311989263,1705533045122,-500.0,0.00022191,2]
[311989264,1705533045135,-500.0,0.00022191,2]
[311989265,1705533045152,-500.0,0.00022191,2]
[311989266,1705533045167,-236.84366911,0.00022191,2]
[311989267,1705533045180,-500.0,0.00022191,2]
[311989268,1705533045191,-500.0,0.00022191,2]
[311989269,1705533045203,-1370.09,0.00022191,2]
[311989270,1705533045216,-253.74722663,0.00022191,2]
[311989271,1705533045228,-500.0,0.00022191,2]
[311989272,1705533045240,-500.0,0.00022191,2]
[311989273,1705533045252,-1561.51,0.00022191,2]
[311989274,1705533045266,-500.0,0.00022191,2]
[311989275,1705533045278,-500.0,0.00022191,2]
[311989276,1705533045290,-503.27883976,0.00022191,2]
[311989278,1705533045302,-500.0,0.00022191,2]
[311989280,1705533045314,-500.0,0.00022191,2]
[311989282,1705533045326,-500.0,0.00022191,2]
[311989284,1705533045339,-500.0,0.00022191,2]
[311989287,1705533045351,-500.0,0.00022191,2]
[311989289,1705533045362,-500.0,0.00022191,2]
[311989291,1705533045374,-387.90409594,0.00022191,2]
[311989294,1705533045386,-503.6558925,0.00022191,2]
[311989297,1705533045398,-743.7,0.00022191,2]
[311989299,1705533045409,-500.0,0.00022191,2]
[311989302,1705533045421,-500.0,0.00022191,2]
[311989305,1705533045433,-500.0,0.00022191,2]
[311989307,1705533045444,-500.0,0.00022191,2]
[311989309,1705533045456,-500.0,0.00022191,2]
[311989312,1705533045468,-500.0,0.00022191,2]
[311989314,1705533045479,-500.0,0.00022191,2]
[311989316,1705533045489,-500.0,0.00022191,2]
[311989319,1705533045501,-762.19,0.00022191,2]
[311989322,1705533045513,-500.0,0.00022191,2]
[311989327,1705533045525,-500.0,0.00022191,2]
[311989330,1705533045536,-500.0,0.00022191,2]
[311989332,1705533045545,-500.0,0.00022191,2]
[311989335,1705533045554,-500.0,0.00022191,2]
[311989338,1705533045562,-501.24,0.00022191,2]
[311989341,1705533045571,-1385.66,0.00022191,2]
[311989344,1705533045580,-500.0,0.00022191,2]
[311989347,1705533045589,-500.0,0.00022191,2]
[311989350,1705533045598,-500.0,0.00022191,2]
[311989353,1705533045606,-500.0,0.00022191,2]
[311989356,1705533045615,-766.82,0.00022191,2]